bitfinex-derivatives/quotes_ETHF0:USTF0_20250904
["timestamp","ask_amount","ask_price","bid_price","bid_amount"]
[1756957741618,0.1827,4399.2,4399.1,0.725]
[1756957742613,0.1827,4399.2,4399.0,0.1218]
[1756957742614,0.1138,4400.3,4399.6,0.4131]
[1756957742820,0.79492201,4400.2,4400.0,0.5349]
[1756957743021,0.3654,4400.6,4400.5,0.6396]
[1756957743220,0.6004,4400.6,4400.5,0.6396]
[1756957743421,1.16034249,4400.6,4400.5,0.6396]
[1756957744010,1.80251791,4400.6,4400.5,0.6396]
[1756957744216,2.1274604,4400.6,4400.5,0.6396]
[1756957744516,2.3624604,4400.6,4400.5,0.6396]
[1756957745223,2.4762604,4400.6,4400.5,0.4337]
[1756957745419,9.22377305,4400.6,4400.0,0.1218]
[1756957745728,0.3654,4400.1,4400.0,0.6396]
[1756957745918,0.3654,4399.6,4399.5,0.3277]
[1756957746221,1.16034249,4399.6,4399.5,0.3277]
[1756957746609,1.27414249,4399.6,4399.5,0.4337]
[1756957746814,1.27414249,4399.6,4399.0,0.1218]
[1756957747019,0.3654,4399.2,4399.1,0.725]
[1756957747214,0.92512973,4399.2,4399.1,0.725]
[1756957747417,0.3654,4399.2,4399.1,0.725]
[1756957747616,0.9251423,4399.2,4399.1,0.725]
[1756957748219,0.3654,4399.2,4399.1,0.725]
[1756957749118,0.92520324,4399.2,4399.1,0.725]
[1756957750218,0.79480324,4399.2,4398.5,0.1218]
[1756957750522,0.3654,4398.9,4398.8,0.5178]
[1756957751019,1.03881377,4398.9,4398.8,0.3119]
[1756957751530,0.3654,4398.7,4398.5,0.4337]
[1756957751735,1.03881377,4398.6,4398.5,0.4337]
[1756957753027,0.92501377,4398.6,4398.5,0.624]
[1756957754027,0.3654,4398.6,4398.5,0.8293]
[1756957754526,0.6004,4398.6,4398.5,0.8293]
[1756957756320,1.15998797,4398.6,4398.5,0.8293]
[1756957757233,0.7145,4398.6,4398.5,0.624]
[1756957757428,1.27400732,4398.6,4398.5,0.624]
[1756957757728,1.27400732,4398.6,4398.5,0.4337]
[1756957758232,1.15990732,4398.6,4398.5,0.624]
[1756957760028,0.55950732,4398.6,4398.5,0.8293]
[1756957760224,0.235,4398.8,4398.6,0.3033]
[1756957760533,0.4175,4398.8,4398.7,0.6989]
[1756957760829,0.97748618,4398.8,4398.7,0.6989]
[1756957761427,1.27408618,4398.8,4398.7,0.3033]
[1756957761628,1.15998618,4398.8,4398.7,0.4936]
[1756957761823,1.15998618,4398.8,4398.7,0.6989]
[1756957764330,0.92498618,4398.8,4398.7,0.6989]
[1756957764536,0.79498618,4398.8,4398.7,0.6989]
[1756957765034,0.97788423,4398.8,4398.7,0.6989]
[1756957767033,0.74288423,4398.8,4398.7,0.6989]
[1756957767245,1.16038423,4398.8,4398.7,0.6989]
[1756957768241,0.79538423,4398.8,4398.7,0.6989]
[1756957769330,0.56038423,4398.8,4398.7,0.6989]
[1756957769534,0.79538423,4398.8,4398.7,0.6989]
[1756957770148,0.97788423,4398.8,4398.7,0.6989]
[1756957774244,1.16038423,4398.8,4398.7,0.6989]
[1756957775145,0.92538423,4398.8,4398.7,0.6989]
[1756957775346,1.16038423,4398.8,4398.7,0.6989]
[1756957775734,0.56038423,4398.8,4398.7,0.6989]
[1756957775940,0.56038423,4398.8,4398.7,4.92624]
[1756957776545,0.56038423,4398.8,4398.7,4.6989]
[1756957776847,0.56038423,4398.8,4398.7,0.6989]
[1756957777044,0.74288423,4398.8,4398.7,0.6989]
[1756957777347,0.56038423,4398.8,4398.7,0.6989]
[1756957780948,0.74288423,4398.8,4398.7,0.6989]
[1756957781944,0.56038423,4398.8,4398.7,0.6989]
[1756957782855,0.23054238,4400.9,4398.7,0.6989]
[1756957782856,1.20211791,4399.7,4399.5,0.1146]
[1756957783051,0.2049,4399.7,4399.6,0.3976]
[1756957783656,0.4083,4399.7,4399.6,0.6972]
[1756957784261,0.6949,4399.7,4399.6,0.6972]
[1756957785962,0.4083,4399.7,4399.6,0.6972]
[1756957786265,1.98050387,4399.9,4399.7,0.2996]
[1756957786561,2.18540387,4399.9,4399.8,0.3976]
[1756957786861,1.20211791,4400.6,4400.4,0.2996]
[1756957787066,0.2049,4400.6,4400.5,0.5122]
[1756957787259,0.1054,4400.5,4400.0,0.4142]
[1756957787459,2.67540387,4400.1,4400.0,0.5046]
[1756957787858,0.6949,4400.1,4400.0,0.8118]
[1756957788057,0.4083,4399.5,4399.4,0.5046]
[1756957788261,0.4083,4399.1,4399.0,0.8118]
[1756957788462,2.67540387,4399.1,4399.0,0.8118]
[1756957788968,2.67540387,4399.1,4399.0,0.5046]
[1756957789262,2.67540387,4399.1,4398.5,0.1146]
[1756957789263,0.2049,4398.7,4398.6,0.3976]
[1756957789568,0.2049,4398.7,4398.6,0.6972]
[1756957790062,0.6949,4398.7,4398.6,0.2996]
[1756957790263,2.67540387,4398.7,4398.6,0.5046]
[1756957790464,2.91040387,4398.7,4398.6,0.5046]
[1756957790766,2.91040387,4398.7,4398.1,0.2996]
[1756957792863,0.6949,4398.2,4398.1,0.2996]
[1756957793066,0.6949,4398.2,4398.1,0.5046]
[1756957794569,0.9299,4398.2,4398.1,0.5046]
[1756957794969,1.48884292,4398.2,4398.1,0.5046]
[1756957797571,3.22670309,4398.2,4398.1,0.5046]
[1756957799574,3.22670309,4398.2,4398.1,0.6972]
[1756957800779,0.2049,4399.1,4399.0,0.5122]
[1756957800971,0.76343328,4399.1,4399.0,0.8118]
[1756957801272,0.4083,4398.7,4398.6,0.205]
[1756957801473,2.66776017,4398.7,4398.6,0.5046]
[1756957801771,3.22635595,4398.7,4398.6,0.5046]
[1756957802176,2.66776017,4398.7,4398.6,0.5046]
[1756957802870,3.22656874,4398.7,4398.6,0.5046]
[1756957803273,3.22656874,4398.7,4398.0,0.1146]
[1756957803570,2.43276017,4398.2,4398.1,0.5046]
[1756957803772,2.99156874,4398.2,4398.1,0.5046]
[1756957804071,0.2866,4398.1,4398.0,0.205]
[1756957804279,0.6949,4398.1,4398.0,0.5046]
[1756957805179,0.6949,4398.1,4398.0,0.6972]
[1756957806078,0.6949,4398.1,4398.0,0.8118]
[1756957807283,0.4083,4398.1,4398.0,0.8118]
[1756957807580,0.2866,4399.1,4398.1,0.2996]
[1756957807781,0.2866,4399.1,4399.0,0.5046]
[1756957807782,0.6949,4399.1,4399.0,0.5046]
[1756957807975,3.22637604,4399.1,4399.0,0.5046]
[1756957808574,3.22637604,4399.1,4398.3,0.6972]
[1756957808575,0.4083,4398.4,4398.3,0.6972]
[1756957808975,0.6949,4398.4,4398.3,0.6972]
[1756957809179,1.25342201,4398.4,4398.3,0.6972]
[1756957809679,2.99128218,4398.4,4398.3,0.5046]
[1756957809880,0.2866,4398.3,4398.1,0.2996]
[1756957810080,2.99129497,4398.2,4398.1,0.5046]
[1756957810278,0.2049,4399.1,4399.0,0.5122]
[1756957810484,1.73786017,4399.7,4399.0,0.5122]
[1756957810678,0.76360842,4399.6,4399.5,0.8118]
[1756957811285,1.25360842,4399.6,4399.5,0.5046]
[1756957811979,1.25360842,4399.6,4399.0,0.1146]
[1756957811980,0.3047,4399.5,4399.1,0.301]
[1756957812290,0.696,4399.2,4399.1,0.494]
[1756957812489,2.66886017,4399.2,4399.1,0.494]
[1756957813878,2.66886017,4399.2,4399.1,0.6838]
[1756957814078,2.92279183,4399.2,4399.1,0.6838]
[1756957815481,3.22749183,4399.2,4399.1,0.6838]
[1756957817193,0.75713166,4399.2,4399.1,0.6838]
[1756957817384,0.79363166,4399.2,4399.1,0.6838]
[1756957817780,0.55863166,4399.2,4399.1,0.6838]
[1756957818189,0.235,4399.5,4399.1,2.42166017]
[1756957818391,0.55941829,4399.4,4399.3,0.6838]
[1756957819492,1.97286017,4399.7,4399.5,0.1246]
[1756957819692,0.5592099,4399.6,4399.5,0.8084]
[1756957820194,0.5592099,4399.6,4399.5,5.0357]
[1756957820392,0.235,4400.0,4399.6,0.301]
[1756957820594,0.4335,4400.0,4399.9,0.6838]
[1756957820894,0.6263,4400.0,4399.9,0.6838]
[1756957821186,1.18546133,4400.0,4399.9,0.6838]
[1756957822393,0.6263,4400.0,4399.9,0.6838]
[1756957822691,0.3913,4400.0,4399.9,0.6838]
[1756957823794,0.696,4400.0,4399.9,0.494]
[1756957823994,1.25480068,4400.0,4399.9,0.494]
[1756957824291,0.696,4400.0,4399.9,0.494]
[1756957825093,1.25486271,4400.0,4399.9,0.494]
[1756957825293,0.696,4400.0,4399.9,0.494]
[1756957826494,2.17136017,4400.2,4400.1,0.6838]
[1756957826689,2.73008622,4400.2,4400.1,0.6838]
[1756957827594,2.92288622,4400.2,4400.1,0.6838]
[1756957828789,2.68788622,4400.2,4400.1,0.6838]
[1756957828985,1.20211791,4401.2,4400.1,4.3828]
[1756957829190,2.43386017,4401.2,4401.1,0.494]
[1756957829495,2.43386017,4401.2,4400.6,0.301]
[1756957829496,3.2278158,4401.2,4400.6,0.301]
[1756957829691,1.73786017,4400.8,4400.7,0.193]
[1756957829892,2.9231158,4400.8,4400.7,0.494]
[1756957830393,3.2278158,4400.8,4400.7,0.6838]
[1756957830588,3.2278158,4400.8,4400.1,0.301]
[1756957830794,2.43386017,4400.2,4400.1,0.301]
[1756957830997,2.66886017,4400.2,4400.1,0.494]
[1756957831798,2.43386017,4400.2,4400.1,0.494]
[1756957831998,2.66886017,4400.2,4400.1,0.494]
[1756957832198,2.36416017,4400.2,4400.1,0.6838]
[1756957832397,2.66886017,4400.2,4399.4,0.301]
[1756957832597,0.3913,4399.8,4399.7,0.6838]
[1756957832801,0.696,4399.8,4399.7,0.6838]
[1756957832999,0.3913,4399.8,4399.7,0.6838]
[1756957833300,0.3047,4400.9,4400.0,0.5074]
[1756957833500,0.3047,4400.7,4400.0,0.5074]
[1756957833800,0.75804751,4400.6,4400.5,0.5074]
[1756957834097,0.99304751,4400.6,4400.5,0.8084]
[1756957834899,1.49054751,4400.6,4400.5,0.8084]
[1756957836097,0.75804751,4400.6,4400.5,0.8084]
[1756957836500,0.55954751,4400.6,4400.5,0.8084]
[1756957836802,0.55954751,4400.6,4400.5,0.5074]
[1756957837297,0.55954751,4400.6,4400.5,0.8084]
[1756957837594,0.235,4401.0,4400.5,2.24526017]
[1756957837799,0.4335,4401.0,4400.9,0.6838]
[1756957837996,0.1985,4401.0,4400.9,0.6838]
[1756957838700,0.696,4400.1,4400.0,0.5074]
[1756957838995,0.696,4400.1,4400.0,0.193]
[1756957839194,0.3913,4400.1,4400.0,0.5074]
[1756957839396,1.73786017,4400.4,4400.3,0.3828]
[1756957839589,0.55921299,4400.4,4400.3,0.6838]
[1756957840600,0.75771299,4400.4,4400.3,0.6838]
[1756957842505,1.24361299,4400.4,4400.3,0.6838]
[1756957842693,2.98147316,4400.4,4400.3,0.6838]
[1756957845106,2.68837316,4400.4,4400.3,0.6838]
[1756957845603,0.6988,4400.3,4400.2,0.2064]
[1756957845908,1.25801299,4400.3,4400.2,0.494]
[1756957846098,1.25801299,4400.3,4400.2,0.6919]
[1756957846295,1.25801299,4400.3,4399.6,0.2876]
[1756957846503,0.21,4399.7,4399.6,0.91918]
[1756957846703,0.2931,4400.1,4399.6,0.6919]
[1756957846904,0.56102873,4400.0,4399.7,0.2876]
[1756957847210,0.21,4400.0,4399.9,0.6919]
[1756957847506,0.77111875,4400.0,4399.9,0.6919]
[1756957847700,0.96681875,4400.0,4399.9,0.6919]
[1756957849002,0.77111875,4400.0,4399.9,0.6919]
[1756957850309,0.96681875,4400.0,4399.9,0.6919]
[1756957850796,1.25991875,4400.0,4399.9,0.6919]
[1756957851396,0.96681875,4400.0,4399.9,0.6919]
[1756957854010,0.77111875,4400.0,4399.9,0.6919]
[1756957855102,0.56111875,4400.0,4399.9,0.6919]
[1756957855303,0.56111875,4400.0,4399.9,2.14216017]
[1756957855498,0.56111875,4400.3,4400.0,0.1255]
[1756957855698,0.56208892,4400.2,4400.1,0.4043]
[1756957855898,0.56208892,4400.2,4400.1,0.6919]
[1756957856803,0.77208892,4400.2,4400.1,0.6919]
[1756957857009,0.96778892,4400.2,4400.1,0.6919]
[1756957858613,1.26088892,4400.2,4400.1,0.6919]
[1756957859613,0.96778892,4400.2,4400.1,0.6919]
[1756957860205,0.56208892,4400.2,4400.1,0.6919]
[1756957860406,0.2931,4400.9,4400.1,4.91916]
[1756957860611,1.43611791,4401.4,4400.1,4.91916]
[1756957860612,1.26098314,4400.8,4400.7,0.6919]
[1756957861005,4.96788314,4400.8,4400.0,0.2876]
[1756957861313,0.6988,4400.1,4400.0,0.494]
[1756957861507,1.26098314,4400.1,4400.0,0.494]
[1756957862014,1.26098314,4400.1,4400.0,0.6919]
[1756957862214,0.96788314,4400.1,4400.0,0.8174]
[1756957862601,1.26098314,4400.1,4400.0,0.8174]
[1756957865013,0.96788314,4400.1,4400.0,0.8174]
[1756957865613,1.26098314,4400.1,4400.0,0.8174]
[1756957867608,0.96788314,4400.1,4400.0,0.8174]
[1756957869216,1.26098314,4400.1,4400.0,0.8174]
[1756957870308,1.26098314,4400.1,4400.0,0.6919]
[1756957870508,1.26098314,4400.1,4400.0,0.494]
[1756957872418,1.26098314,4400.1,4400.0,0.6919]
[1756957872717,1.26098314,4400.1,4400.0,0.8126]
[1756957874012,0.96788314,4400.1,4400.0,0.8126]
[1756957874214,1.25618314,4400.1,4400.0,0.2876]
[1756957874413,1.25618314,4400.1,4398.6,3.17784558]
[1756957874414,0.4099,4398.7,4398.6,0.7053]
[1756957874916,0.6982,4398.7,4398.6,0.7053]
[1756957876024,0.4099,4398.7,4398.6,0.7053]
[1756957876714,0.6982,4398.7,4398.1,0.2927]
[1756957876914,0.6982,4398.2,4398.1,0.5004]
[1756957878620,0.6982,4398.2,4398.1,0.7053]
[1756957881816,0.6982,4398.2,4398.1,0.5004]
[1756957882310,0.6982,4398.2,4398.1,0.7053]
[1756957882516,0.4099,4398.2,4398.1,0.7053]
[1756957882921,0.2027,4398.2,4398.1,0.7053]
[1756957885316,0.2883,4398.5,4398.1,0.7053]
[1756957885518,0.2027,4398.3,4398.2,0.2927]
[1756957885811,0.2027,4398.3,4398.2,0.7053]
[1756957886421,0.4099,4398.3,4398.2,0.7053]
[1756957886622,0.6982,4398.3,4398.2,0.7053]
[1756957888223,0.2883,4398.2,4397.6,0.2927]
[1756957888427,0.2072,4397.8,4397.7,0.5004]
[1756957888623,0.6982,4397.8,4397.7,0.7053]
[1756957892034,0.6982,4397.8,4397.7,0.5004]
[1756957892931,0.6982,4397.8,4397.7,0.7053]
[1756957904143,1.26064858,4397.8,4397.7,0.7053]
[1756957904743,0.2036,4398.1,4398.0,0.1155]
[1756957904934,0.2036,4398.1,4398.0,0.5161]
[1756957905135,0.56258671,4398.1,4398.0,0.5161]
[1756957905335,0.56281963,4398.6,4398.5,0.2102]
[1756957905545,0.76641963,4398.6,4398.5,2.80181672]
[1756957906133,0.76641963,4398.6,4398.5,0.8229]
[1756957906343,1.26311963,4398.6,4398.5,0.7074]
[1756957907140,1.26311963,4398.6,4398.5,0.8229]
[1756957908846,0.97211963,4398.6,4398.5,0.8229]
[1756957909238,1.26311963,4398.6,4398.5,0.4972]
[1756957909645,0.76641963,4398.6,4398.5,0.8229]
[1756957910638,1.26311963,4398.6,4398.5,0.8229]
[1756957910940,1.26311963,4398.6,4398.5,0.4972]
[1756957912540,1.26311963,4398.6,4398.0,0.1155]
[1756957912739,0.66841963,4398.5,4397.5,0.19748]
[1756957913042,0.7003,4397.6,4397.5,0.69468]
[1756957913244,0.7003,4397.6,4397.5,0.57398]
[1756957913647,0.7003,4397.6,4397.5,0.78418]
[1756957914051,1.26293423,4397.6,4397.5,0.89968]
[1756957914251,0.97193423,4397.6,4397.5,0.89968]
[1756957917352,0.76623423,4397.6,4397.5,0.89968]
[1756957917852,0.56263423,4397.6,4397.5,2.87859672]
[1756957919455,0.56263423,4397.6,4397.5,2.63736529]
[1756957919952,0.76623423,4397.6,4397.5,0.89968]
[1756957920153,0.56263423,4397.6,4397.5,0.89968]
[1756957921653,0.76623423,4397.6,4397.5,0.89968]
[1756957923855,0.76623423,4397.6,4397.5,1.13368]
[1756957924158,0.2036,4397.6,4397.5,1.13368]
[1756957927357,0.7003,4398.6,4398.5,0.8229]
[1756957927558,0.97259318,4398.6,4398.5,0.8229]
[1756957928255,0.4093,4398.6,4398.5,0.8229]
[1756957928452,0.97271472,4398.6,4398.5,0.8229]
[1756957930358,0.56341472,4398.6,4398.5,0.8229]
[1756957930755,0.76701472,4398.6,4398.5,0.8229]
[1756957931163,0.2036,4398.6,4398.5,0.8229]
[1756957932462,0.2036,4398.6,4398.5,2.56058529]
[1756957933463,0.2012,4399.2,4399.1,0.7253]
[1756957933661,0.56337931,4399.5,4399.1,2.14748529]
[1756957933856,2.43028529,4399.2,4398.0,0.1155]
[1756957934162,0.6926,4398.5,4398.4,0.4098]
[1756957934358,0.6926,4398.5,4398.4,0.7253]
[1756957934554,1.36143453,4398.5,4398.2,0.3155]
[1756957934761,0.3963,4398.0,4397.9,0.524]
[1756957934969,0.3963,4398.0,4397.9,0.7253]
[1756957935464,0.6926,4398.0,4397.9,0.7253]
[1756957936064,0.3963,4398.0,4397.9,0.7253]
[1756957937368,1.97168529,4398.9,4398.0,0.1248]
[1756957937562,0.2012,4398.4,4398.3,0.524]
[1756957937768,0.76528159,4398.4,4398.3,0.7253]
[1756957938366,0.96038159,4398.4,4398.3,0.7253]
[1756957938564,1.25668159,4398.4,4397.8,0.234]
[1756957938768,0.6926,4397.9,4397.8,0.758]
[1756957939967,1.25680078,4397.9,4397.8,0.524]
[1756957940169,1.25680078,4397.9,4397.8,0.3155]
[1756957940666,2.99448607,4397.9,4397.5,0.07678]
[1756957940867,2.43028529,4397.6,4397.5,0.07678]
[1756957941071,2.99448607,4397.6,4397.5,0.07678]
[1756957941758,1.25680078,4397.6,4397.5,0.07678]
[1756957941962,2.99448607,4397.6,4397.5,0.07678]
[1756957944369,3.22848607,4397.6,4397.5,0.07678]
[1756957950681,0.56420078,4397.6,4397.5,4.92688]
[1756957950976,0.2963,4398.0,4397.9,0.7253]
[1756957950977,0.2012,4398.0,4397.9,0.7253]
[1756957951175,0.2963,4398.3,4398.2,0.4098]
[1756957951176,0.4975,4398.3,4398.2,0.4098]
[1756957951377,0.76429937,4398.3,4398.2,0.7253]
[1756957951583,0.56309937,4398.3,4398.2,0.7253]
[1756957951783,0.4352,4398.6,4398.5,0.8501]
[1756957952179,0.99829742,4398.6,4398.5,0.8501]
[1756957952777,1.19339742,4398.6,4398.5,0.8501]
[1756957952980,1.48969742,4398.6,4398.5,0.8501]
[1756957953283,1.19339742,4398.6,4398.5,0.8501]
[1756957954582,0.95939742,4398.6,4398.5,0.8501]
[1756957955481,0.76429742,4398.6,4398.5,0.8501]
[1756957956081,0.56309742,4398.6,4398.5,0.8501]
[1756957956586,0.6303,4399.1,4399.0,0.524]
[1756957956886,1.19314502,4399.1,4398.6,0.3155]
[1756957957088,1.25544502,4399.0,4398.9,0.2085]
[1756957957286,1.25544502,4399.0,4398.9,0.524]
[1756957957489,1.25544502,4399.0,4398.9,0.3155]
[1756957957687,1.25544502,4399.0,4398.5,0.1248]
[1756957957891,0.6926,4398.7,4398.6,0.524]
[1756957958189,0.6926,4398.7,4398.6,0.7253]
[1756957958190,1.25544502,4398.7,4398.6,0.7253]
[1756957960792,0.76404502,4398.7,4398.6,0.7253]
[1756957960992,0.56284502,4398.7,4398.6,0.7253]
[1756957961196,0.2012,4398.8,4398.7,0.3155]
[1756957961387,0.76421806,4398.8,4398.7,0.7253]
[1756957962391,1.24741806,4398.8,4398.7,0.7253]
[1756957962691,0.76421806,4398.8,4398.7,0.7253]
[1756957963990,0.56301806,4398.8,4398.7,2.46298529]
[1756957964195,0.68,4399.6,4399.5,0.533]
[1756957964391,1.24342043,4399.6,4399.5,0.8286]
[1756957965191,0.95182043,4399.6,4399.5,0.8286]
[1756957967198,0.3884,4399.6,4399.5,0.8286]
[1756957967399,0.1968,4399.6,4399.5,0.8286]
[1756957967600,0.2916,4399.9,4399.5,0.533]
[1756957967794,1.24276595,4399.8,4399.7,2.44078529]
[1756957968193,0.95116595,4399.8,4399.7,2.44078529]
[1756957968594,0.75956595,4399.8,4399.7,2.44078529]
[1756957969296,1.24276595,4399.8,4399.7,0.7031]
[1756957969597,0.56276595,4399.8,4399.7,2.44078529]
[1756957970311,0.3884,4400.3,4400.2,0.4075]
[1756957970504,0.3884,4400.3,4400.2,0.7031]
[1756957970705,0.95051883,4400.3,4400.2,0.7031]
[1756957972114,0.56211883,4400.3,4400.2,0.7031]
[1756957972414,0.68,4400.9,4400.8,0.1992]
[1756957972607,1.24186587,4400.9,4400.8,0.4948]
[1756957973315,1.24186587,4400.9,4400.8,0.7031]
[1756957974114,0.68,4400.9,4400.8,0.7031]
[1756957975212,0.3884,4400.9,4400.8,0.7031]
[1756957975612,0.68,4400.9,4400.8,0.7031]
[1756957976307,0.3884,4400.9,4400.8,0.7031]
[1756957976612,0.1968,4400.9,4400.8,2.44078529]
[1756957979515,0.1968,4400.9,4400.8,0.7031]
[1756957979914,0.1968,4401.1,4401.0,0.1255]
[1756957980115,0.1968,4401.1,4401.0,0.533]
[1756957980612,0.75800321,4401.1,4401.0,0.8286]
[1756957980816,0.2916,4401.7,4401.0,0.533]
[1756957981012,0.56135222,4401.6,4401.5,0.8286]
[1756957981217,0.75815222,4401.6,4401.5,0.8286]
[1756957981417,0.1968,4401.6,4401.5,0.8286]
[1756957984216,0.68,4402.1,4402.0,0.4948]
[1756957984512,1.24139145,4402.1,4402.0,0.4948]
[1756957985417,1.24139145,4402.1,4402.0,0.7031]
[1756957985617,1.24139145,4402.1,4402.0,0.8286]
[1756957986212,0.94979145,4402.1,4402.0,0.8286]
[1756957986412,0.56139145,4402.1,4402.0,2.80699341]
[1756957986625,0.2916,4402.8,4402.1,0.2956]
[1756957986817,1.24124457,4402.7,4402.6,0.4948]
[1756957988109,1.24124457,4402.7,4402.6,0.7031]
[1756957988817,0.68,4401.7,4401.6,0.7031]
[1756957989025,0.68,4401.7,4401.0,0.1255]
[1756957989222,0.68,4401.7,4401.1,0.2956]
[1756957990322,0.1968,4401.2,4401.1,0.7031]
[1756957991414,0.1056,4402.5,4401.1,0.7031]
[1756957991415,1.30771791,4402.5,4401.1,0.7031]
[1756957991622,0.68,4401.6,4401.5,0.8286]
[1756957991824,1.23980836,4401.6,4401.5,0.8286]
[1756957992425,0.94820836,4401.6,4401.5,0.8286]
[1756957992623,0.75660836,4401.6,4401.5,0.8286]
[1756957993424,1.27440836,4401.6,4401.5,0.8056]
[1756957993628,0.75660836,4401.6,4401.5,0.8056]
[1756957994726,0.55980836,4401.6,4401.5,0.8056]
[1756957994926,0.55980836,4401.6,4401.5,0.51]
[1756957995119,0.87193703,4402.0,4401.6,0.3922]
[1756957995321,0.75163703,4401.9,4401.8,0.3922]
[1756957995617,0.75163703,4401.9,4401.8,0.693]
[1756957995817,0.3113,4401.8,4401.5,0.1172]
[1756957996014,0.7088,4401.6,4401.5,0.6166]
[1756957996223,1.26943703,4401.6,4401.5,0.4994]
[1756957996614,1.26943703,4401.6,4401.5,0.693]
[1756957997222,0.56063703,4401.6,4401.5,0.8102]
[1756957998129,0.56063703,4401.6,4401.5,2.78859341]
[1756957999128,0.75163703,4401.6,4401.5,2.78859341]
[1756957999326,1.26943703,4401.6,4401.5,0.8102]
[1756957999520,0.95813703,4401.6,4401.5,0.8102]
[1756957999824,0.56063703,4401.6,4401.5,2.78859341]
[1756958000327,0.75163703,4401.6,4401.5,2.78859341]
[1756958001126,0.56063703,4401.6,4401.5,2.78859341]
[1756958001324,0.75163703,4401.6,4401.5,0.8102]
[1756958001529,1.26943703,4401.6,4401.5,0.8102]
[1756958003926,0.7088,4401.1,4400.5,0.1255]
[1756958004123,0.3975,4400.6,4400.5,0.5177]
[1756958004322,1.26943703,4400.6,4400.5,0.5177]
[1756958004522,1.26943703,4400.6,4400.5,0.8185]
[1756958009232,0.95813703,4400.6,4400.5,0.8185]
[1756958012036,1.26943703,4400.6,4400.5,0.8185]
[1756958012636,0.95813703,4400.6,4400.5,0.8185]
[1756958013535,1.26943703,4400.6,4400.5,0.8185]
[1756958014329,0.7088,4400.6,4400.5,0.8185]
[1756958014534,0.3975,4400.6,4400.5,0.8185]
[1756958014735,0.191,4400.6,4400.5,0.8185]
[1756958015333,0.7088,4400.6,4400.0,0.1255]
[1756958015633,0.191,4400.1,4400.0,2.72909341]
[1756958015838,0.7088,4400.1,4400.0,2.37059341]
[1756958016337,0.7088,4400.1,4400.0,0.3008]
[1756958016538,1.27112375,4400.1,4400.0,0.3008]
[1756958017138,1.27112375,4400.1,4400.0,0.4994]
[1756958017527,1.27112375,4400.1,4400.0,0.3008]
[1756958018432,1.27112375,4400.1,4400.0,0.693]
[1756958018634,0.3113,4400.5,4400.0,2.78859341]
[1756958018833,0.56210266,4400.4,4400.1,0.3008]
[1756958019028,0.191,4400.4,4400.3,0.3922]
[1756958019234,1.06440538,4400.4,4400.3,0.3922]
[1756958019637,1.06440538,4400.4,4400.3,0.693]
[1756958019836,0.75310538,4400.4,4400.3,0.693]
[1756958023542,0.94440538,4400.4,4400.3,0.693]
[1756958023743,1.25360538,4400.4,4400.3,0.3008]
[1756958023936,0.3885,4400.2,4400.0,1.97839341]
[1756958024137,0.6977,4400.1,4400.0,2.27529341]
[1756958024339,1.25960689,4400.1,4400.0,2.47529341]
[1756958024537,1.25960689,4400.1,4400.0,0.4969]
[1756958025441,0.95040689,4400.1,4399.7,0.2969]
[1756958025636,0.106,4400.5,4399.6,2.61479341]
[1756958025637,0.3092,4400.4,4399.6,2.61479341]
[1756958025839,0.56188743,4400.3,4399.6,2.61479341]
[1756958026049,0.75908743,4400.2,4400.1,0.4034]
[1756958026239,0.75908743,4400.2,4400.1,0.7003]
[1756958028847,1.25958743,4400.2,4400.1,0.7003]
[1756958029849,0.75908743,4400.2,4400.1,0.7003]
[1756958030347,0.3092,4400.8,4400.1,0.4034]
[1756958030648,0.1972,4400.5,4400.4,2.38179341]
[1756958030843,0.75939295,4400.5,4400.4,2.38179341]
[1756958031046,0.75939295,4400.5,4400.4,2.67869341]
[1756958033349,0.56219295,4400.5,4400.4,2.67869341]
[1756958034443,0.56219295,4400.5,4400.4,7.13894341]
[1756958034645,0.6977,4401.5,4401.4,0.4034]
[1756958034845,1.26069505,4401.5,4401.4,0.7003]
[1756958041442,1.26069505,4401.5,4401.4,2.43523491]
[1756958041951,0.95149505,4401.5,4401.4,2.43523491]
[1756958044456,0.95075279,4401.5,4401.4,2.43523491]
[1756958045852,1.25995279,4401.5,4401.4,2.43523491]
[1756958047455,1.25995279,4401.5,4401.4,2.03183491]
[1756958047656,1.25995279,4401.5,4401.4,2.43523491]
[1756958051864,0.95075279,4401.5,4401.4,2.43523491]
[1756958052555,0.75945279,4401.5,4401.4,2.43523491]
[1756958052863,1.25005279,4401.5,4401.4,0.7003]
[1756958053159,7.5500877,4401.5,4400.6,0.3024]
[1756958053355,0.4055,4400.2,4400.1,0.5089]
[1756958053560,0.7012,4400.2,4400.1,2.24383491]
[1756958054156,0.7012,4400.2,4399.9,0.047]
[1756958054362,1.26284807,4400.1,4400.0,0.3024]
[1756958055267,1.26284807,4400.1,4399.5,0.2065]
[1756958055268,0.7012,4399.6,4399.5,0.2065]
[1756958055762,0.7012,4399.6,4399.5,0.7174]
[1756958055959,0.7012,4399.6,4399.5,0.8375]
[1756958056862,0.4055,4399.6,4399.5,0.8375]
[1756958057256,0.4426,4400.2,4400.1,0.2065]
[1756958057459,1.49453304,4400.2,4400.1,0.5089]
[1756958059468,1.49453304,4400.2,4400.1,0.7174]
[1756958059962,1.26253304,4400.2,4400.1,0.7174]
[1756958060467,0.96683304,4400.2,4400.1,0.7174]
[1756958062367,0.56133304,4400.2,4400.1,4.94466]
[1756958062565,0.9332,4401.1,4401.0,0.7174]
[1756958062770,1.49445042,4401.1,4401.0,0.7174]
[1756958064366,0.2957,4401.0,4400.6,1.73493491]
[1756958064561,0.7012,4400.7,4400.6,2.45233491]
[1756958068165,5.49018511,4400.7,4399.6,0.3024]
[1756958068371,0.2106,4399.7,4399.6,0.7174]
[1756958069477,0.7012,4399.7,4399.6,0.7174]
[1756958070469,7.22949227,4399.7,4399.1,0.3024]
[1756958070669,0.7012,4399.2,4399.1,0.5089]